fUST/lending_fUST_20250423
["ID","MTS","AMOUNT","RATE_DAILY","PERIOD"]
[358695816,1745382638304,-500.0,0.00021911,2]
[358695817,1745382638315,-500.0,0.00021911,2]
[358695818,1745382638324,-500.0,0.00021911,2]
[358695819,1745382638336,-82.11754984,0.00021911,2]
[358695820,1745382638416,-417.88245016,0.00021911,2]
[358695821,1745382638426,-500.0,0.00021911,2]
[358695822,1745382638436,-500.0,0.00021911,2]
[358695823,1745382638446,-511.80051063,0.00021911,2]
[358695824,1745382638456,-500.0,0.00021911,2]
[358695825,1745382638466,-500.0,0.00021911,2]
[358695826,1745382638477,-500.0,0.00021911,2]
[358695827,1745382638488,-198.916142,0.00021911,2]
[358695828,1745382638499,-500.0,0.00021911,2]
[358695829,1745382638508,-424.68044415,0.00021911,2]
[358695830,1745382638518,-500.0,0.00021911,2]
[358695831,1745382638529,-500.0,0.00021911,2]
[358695832,1745382638541,-500.0,0.00021911,2]
[358695833,1745382638552,-500.0,0.00021911,2]
[358695834,1745382638562,-500.0,0.00021911,2]
[358695835,1745382638572,-500.0,0.00021911,2]
[358695836,1745382638582,-500.0,0.00021911,2]
[358695837,1745382638592,-500.0,0.00021911,2]
[358695838,1745382638601,-500.0,0.00021911,2]
[358695839,1745382638611,-499.99999999,0.00021911,2]
[358695840,1745382638620,-500.0,0.00021911,2]
[358695841,1745382638630,-500.0,0.00021911,2]
[358695842,1745382638639,-500.0,0.00021911,2]
[358695843,1745382638649,-500.0,0.00021911,2]
[358695844,1745382638658,-500.0,0.00021911,2]
[358695845,1745382638667,-500.0,0.00021911,2]
[358695846,1745382638677,-500.0,0.00021911,2]
[358695847,1745382638686,-500.0,0.00021911,2]
[358695848,1745382638696,-500.0,0.00021911,2]
[358695849,1745382638706,-500.0,0.00021911,2]
[358695850,1745382638716,-57.08343152,0.00021917,2]
[358695851,1745382638725,-500.0,0.00021917,2]
[358695852,1745382638735,-500.0,0.00021917,2]
[358695853,1745382638745,-503.29497135,0.00021917,2]
[358695854,1745382638755,-500.0,0.00021917,2]
[358695855,1745382638764,-504.92468526,0.00021917,2]
[358695856,1745382638774,-500.0,0.00021917,2]
[358695857,1745382638924,-131.41736494,0.00021917,2]
[358695877,1745382646232,-383.25184754,0.00021917,2]
[358695878,1745382646243,-507.32447787,0.00021917,2]
[358695879,1745382646253,-521.24317087,0.00021917,2]
[358695880,1745382646263,-503.46618883,0.00021917,2]
[358695881,1745382646273,-507.93925172,0.00021917,2]
[358695882,1745382646283,-500.0,0.00021917,2]
[358695883,1745382646292,-500.0,0.00021917,2]
[358695884,1745382646302,-500.0,0.00021917,2]
[358695885,1745382646311,-512.37243679,0.00021917,2]
[358695886,1745382646321,-1495.4,0.00021917,2]
[358695887,1745382646332,-500.0,0.00021917,2]
[358695888,1745382646342,-504.06704402,0.00021917,2]
[358695889,1745382646352,-500.0,0.00021917,2]
[358695890,1745382646363,-503.42658473,0.00021917,2]
[358695891,1745382646372,-500.0,0.00021917,2]
[358695892,1745382646382,-261.06451266,0.00021917,2]
[358695893,1745382646393,-500.0,0.00021917,2]
[358695894,1745382646415,-505.96150271,0.00021917,2]
[358695895,1745382646426,-500.0,0.00021917,2]
[358695896,1745382646437,-501.81036374,0.00021917,2]
[358695897,1745382646448,-500.0,0.00021917,2]
[358695898,1745382646458,-500.0,0.00021917,2]
[358695899,1745382646468,-500.0,0.00021917,2]
[358695900,1745382646481,-500.0,0.00021917,2]
[358695901,1745382646491,-500.0,0.00021917,2]
[358695902,1745382646502,-500.0,0.00021917,2]
[358695903,1745382646512,-500.0,0.00021917,2]
[358695904,1745382646523,-500.0,0.00021917,2]
[358695905,1745382646535,-500.0,0.00021917,2]
[358695906,1745382646545,-500.0,0.00021917,2]
[358695907,1745382646556,-500.0,0.00021917,2]
[358695908,1745382646566,-500.0,0.00021917,2]
[358695909,1745382646576,-500.0,0.00021917,2]
[358695910,1745382646586,-500.0,0.00021917,2]
[358695911,1745382646596,-500.0,0.00021917,2]
[358695912,1745382646606,-500.0,0.00021917,2]
[358695913,1745382646616,-500.0,0.00021917,2]
[358695914,1745382646625,-500.0,0.00021917,2]
[358695915,1745382646635,-500.0,0.00021917,2]
[358695916,1745382646645,-500.0,0.00021917,2]
[358695917,1745382646654,-500.0,0.00021917,2]
[358695918,1745382646664,-500.0,0.00021917,2]
[358695919,1745382646675,-509.92748789,0.00021917,2]
[358695920,1745382646684,-500.0,0.00021917,2]
[358695921,1745382646695,-500.0,0.00021917,2]
[358695922,1745382646704,-500.0,0.00021917,2]
[358695923,1745382646714,-500.0,0.00021917,2]
[358695924,1745382646724,-500.0,0.00021917,2]
[358695925,1745382646734,-500.0,0.00021917,2]
[358695926,1745382646744,-500.0,0.00021917,2]
[358695927,1745382646754,-500.0,0.00021917,2]
[358695928,1745382646763,-500.0,0.00021917,2]
[358695929,1745382646773,-505.2102568,0.00021917,2]
[358695930,1745382646785,-500.0,0.00021917,2]
[358695931,1745382646795,-500.0,0.00021917,2]
[358695932,1745382646805,-500.0,0.00021917,2]
[358695933,1745382646815,-500.0,0.00021917,2]
[358695934,1745382646825,-500.0,0.00021917,2]
[358695935,1745382646835,-500.0,0.00021917,2]
[358695936,1745382646846,-500.0,0.00021917,2]
[358695937,1745382646856,-500.0,0.00021917,2]
[358695938,1745382646866,-500.0,0.00021917,2]
[358695939,1745382646876,-500.0,0.00021917,2]
[358695940,1745382646886,-500.0,0.00021917,2]
[358695941,1745382646896,-500.0,0.00021917,2]
[358695942,1745382646906,-500.0,0.00021917,2]
[358695943,1745382646916,-500.0,0.00021917,2]
[358695944,1745382646926,-500.0,0.00021917,2]
[358695945,1745382646936,-500.0,0.00021917,2]
[358695946,1745382646946,-500.0,0.00021917,2]
[358695947,1745382646957,-500.0,0.00021917,2]
[358695948,1745382646967,-3237.07,0.00021917,2]
[358695949,1745382646977,-500.0,0.00021917,2]
[358695950,1745382646987,-234.7203524,0.00021917,2]
[358695951,1745382646996,-500.0,0.00021917,2]
[358695952,1745382647006,-500.0,0.00021917,2]
[358695953,1745382647017,-500.0,0.00021917,2]
[358695954,1745382647028,-500.0,0.00021917,2]
[358695955,1745382647043,-8002.49,0.00021917,2]
[358695956,1745382647053,-505.27332257,0.00021917,2]
[358695957,1745382647063,-500.0,0.00021917,2]
[358695958,1745382647072,-500.0,0.00021917,2]
[358695959,1745382647082,-500.0,0.00021917,2]
[358695960,1745382647092,-511.04835663,0.00021917,2]
[358695961,1745382647102,-500.0,0.00021917,2]
[358695962,1745382647112,-550.91,0.00021917,2]
[358695963,1745382647122,-500.0,0.00021917,2]
[358695964,1745382647132,-500.0,0.00021917,2]
[358695965,1745382647142,-500.0,0.00021917,2]
[358695966,1745382647152,-500.0,0.00021917,2]
[358695967,1745382647162,-500.0,0.00021917,2]
[358695968,1745382647172,-1105.91,0.00021917,2]
[358695969,1745382647182,-500.0,0.00021917,2]
[358695970,1745382647192,-500.0,0.00021917,2]
[358695971,1745382647202,-539.77,0.00021917,2]
[358695972,1745382647212,-500.0,0.00021917,2]
[358695973,1745382647222,-500.0,0.00021917,2]
[358695974,1745382647232,-500.0,0.00021917,2]
[358695975,1745382647242,-500.0,0.00021917,2]
[358695976,1745382647252,-500.0,0.00021917,2]
[358695977,1745382647262,-500.0,0.00021917,2]
[358695978,1745382647271,-500.0,0.00021917,2]
[358695979,1745382647282,-505.12754311,0.00021917,2]
[358695980,1745382647292,-7439.73,0.00021917,2]
[358695981,1745382647302,-512.26572073,0.00021917,2]
[358695982,1745382647312,-500.0,0.00021917,2]
[358695983,1745382647322,-500.0,0.00021917,2]
[358695984,1745382647332,-35.9626375,0.00021917,2]
[358696068,1745383832325,-250.0,0.00020533,2]
[358696069,1745383832337,-203.193848,0.00020537,2]
[358696070,1745383832347,-259.377187,0.00020787,2]
[358696071,1745383832359,-38.88020666,0.00020793,2]
[358696073,1745383832371,-294.85007507,0.00020793,2]
[358696089,1745383832538,-287.3368923,0.00020833,2]
[358696090,1745383832549,-348.49461895,0.0002099,2]
[358696091,1745383832559,-556.38267473,0.00021716,2]
[358696124,1745383838569,-483.59367492,0.00021716,2]
[358696126,1745383838579,-153.66700299,0.00021759,2]
[358696128,1745383838590,-65.02708116,0.00021804,2]
[358696133,1745383838621,-85.97291884,0.00021804,2]
[358696135,1745383838630,-458.816,0.00021815,2]
[358696137,1745383838640,-300.0,0.00021815,2]
[358696138,1745383838650,-300.0,0.00021815,2]
[358696140,1745383838660,-269.40893824,0.00021816,2]
[358696142,1745383838672,-500.0,0.00021816,2]
[358696144,1745383838683,-500.0,0.00021816,2]
[358696146,1745383838693,-233.89925099,0.00021816,2]
[358696148,1745383838703,-500.0,0.00021816,2]
[358696150,1745383838713,-500.0,0.00021816,2]
[358696152,1745383838723,-254.43344251,0.00021816,2]
[358696154,1745383838733,-500.0,0.00021816,2]
[358696156,1745383838742,-500.0,0.00021816,2]
[358696158,1745383838752,-500.0,0.00021816,2]
[358696161,1745383838762,-500.0,0.00021816,2]
[358696162,1745383838771,-500.0,0.00021816,2]
[358696165,1745383838782,-500.0,0.00021816,2]
[358696166,1745383838791,-500.0,0.00021816,2]
[358696168,1745383838801,-500.0,0.00021816,2]
[358696170,1745383838811,-500.0,0.00021816,2]
[358696172,1745383838820,-500.0,0.00021816,2]
[358696174,1745383838831,-310.18225598,0.00021816,2]
[358696176,1745383838840,-500.0,0.00021816,2]
[358696178,1745383838851,-500.0,0.00021816,2]
[358696180,1745383838862,-500.0,0.00021816,2]
[358696182,1745383838874,-500.0,0.00021816,2]
[358696184,1745383838884,-500.0,0.00021816,2]
[358696187,1745383838895,-500.0,0.00021816,2]
[358696189,1745383838906,-500.0,0.00021816,2]
[358696190,1745383838917,-500.0,0.00021816,2]
[358696192,1745383838928,-500.0,0.00021816,2]
[358696195,1745383838939,-500.0,0.00021816,2]
[358696196,1745383838951,-500.0,0.00021816,2]
[358696198,1745383838961,-500.0,0.00021816,2]
[358696200,1745383838971,-500.0,0.00021816,2]
[358696203,1745383838981,-500.0,0.00021816,2]
[358696205,1745383838992,-500.0,0.00021816,2]
[358696207,1745383839001,-500.0,0.00021816,2]
[358696208,1745383839011,-500.0,0.00021816,2]
[358696209,1745383839020,-500.0,0.00021816,2]
[358696210,1745383839030,-500.0,0.00021816,2]
[358696211,1745383839039,-500.0,0.00021816,2]
[358696212,1745383839049,-500.0,0.00021816,2]
[358696213,1745383839059,-500.0,0.00021816,2]
[358696214,1745383839068,-500.0,0.00021816,2]
[358696215,1745383839079,-500.0,0.00021816,2]
[358696216,1745383839090,-500.0,0.00021816,2]
[358696217,1745383839100,-500.0,0.00021816,2]
[358696218,1745383839110,-500.0,0.00021816,2]
[358696219,1745383839120,-500.0,0.00021816,2]
[358696220,1745383839130,-500.0,0.00021816,2]
[358696221,1745383839141,-500.0,0.00021816,2]
[358696222,1745383839151,-500.0,0.00021816,2]
[358696223,1745383839162,-500.0,0.00021816,2]
[358696224,1745383839175,-500.0,0.00021816,2]
[358696225,1745383839185,-622.11961167,0.00021816,2]
[358696226,1745383839196,-500.0,0.00021816,2]
[358696227,1745383839206,-500.0,0.00021816,2]
[358696228,1745383839216,-500.0,0.00021816,2]
[358696229,1745383839225,-500.0,0.00021816,2]
[358696230,1745383839236,-500.0,0.00021816,2]
[358696232,1745383839246,-500.0,0.00021816,2]
[358696234,1745383839256,-500.0,0.00021816,2]
[358696236,1745383839266,-500.0,0.00021816,2]
[358696238,1745383839276,-500.0,0.00021816,2]
[358696240,1745383839286,-500.0,0.00021816,2]
[358696242,1745383839297,-500.0,0.00021816,2]
[358696244,1745383839307,-500.0,0.00021816,2]
[358696246,1745383839318,-500.0,0.00021816,2]
[358696248,1745383839327,-400.0,0.00021816,2]
[358696250,1745383839337,-500.0,0.00021816,2]
[358696252,1745383839347,-500.0,0.00021816,2]
[358696254,1745383839356,-500.0,0.00021816,2]
[358696256,1745383839366,-500.0,0.00021816,2]
[358696258,1745383839376,-500.0,0.00021816,2]
[358696260,1745383839386,-500.0,0.00021816,2]
[358696262,1745383839395,-500.0,0.00021816,2]
[358696264,1745383839406,-500.0,0.00021816,2]
[358696267,1745383839418,-500.0,0.00021816,2]
[358696269,1745383839427,-1000.0,0.00021817,2]
[358696270,1745383839437,-22642.1550683,0.00021817,2]
[358696272,1745383839450,-15113.41926461,0.00021817,2]
[358696274,1745383839462,-1539.92311774,0.00021817,2]
[358696315,1745383840779,-1856.84192456,0.00021817,2]
[358696413,1745383841751,-13298.02530305,0.00021817,2]
[358696833,1745383846345,-381.92818453,0.00020433,2]
[358696845,1745383846459,-618.07181547,0.00020433,2]
[358696847,1745383846469,-5345.7152442,0.00021817,2]
[358696849,1745383846481,-3746.78737795,0.00021817,2]
[358697453,1745384147491,487.84435341,0.00019717,2]
[358697459,1745384271225,25748.23646256,0.0002,2]
[358697466,1745384448743,325.22956894,0.00019717,2]
[358697470,1745384689292,-152.0,0.00020346,2]
[358697484,1745384927678,151.0,0.00020788,120]
[358697488,1745385003835,-171.19814605,0.00020256,2]
[358697497,1745385032453,-18.37502905,0.00020256,2]
[358697498,1745385032464,-152.0,0.00020332,2]
[358697499,1745385032474,-51.193849,0.00020346,2]
[358697500,1745385032484,-152.48478246,0.00020432,2]
[358697501,1745385032495,-147.51521754,0.00020432,2]
[358697502,1745385032505,-720.0,0.00020432,2]
[358697503,1745385032516,-132.87404275,0.00020432,2]
[358697506,1745385032528,-167.12595725,0.00020432,2]
[358697508,1745385032538,-906.23544559,0.00020433,2]
[358697512,1745385032566,-93.76455441,0.00020433,2]
[358697514,1745385032576,-500.0,0.00020433,2]
[358697516,1745385032587,-500.0,0.00020433,2]
[358697518,1745385032596,-500.0,0.00020433,2]
[358697520,1745385032606,-500.0,0.00020433,2]
[358697522,1745385032616,-483.4560446,0.00020433,2]
[358697524,1745385032625,-166.5654824,0.00020524,2]
[358697525,1745385032635,-5557.4684464,0.00020788,2]
[358697526,1745385032646,-1891.6141468,0.00020968,2]
[358697527,1745385032655,-153.0,0.00021378,2]
[358697528,1745385032666,-153.0,0.00021378,2]
[358697529,1745385032676,-153.0,0.00021378,2]
[358697530,1745385032685,-153.0,0.00021378,2]
[358697531,1745385032696,-968.52651182,0.00021673,2]
[358697532,1745385032707,-183.63287957,0.00021673,2]
[358697533,1745385032717,-250.0,0.00021697,2]
[358697534,1745385032727,-151.0,0.00021704,2]
[358697535,1745385032737,-207.4,0.00021704,2]
[358697536,1745385032746,-151.0,0.00021704,2]
[358697537,1745385032757,-229.6974534,0.00021704,2]
[358697538,1745385032771,-22065.39442,0.00021716,2]
[358697539,1745385032781,-514.91401755,0.00021716,2]
[358697540,1745385032790,-500.0,0.00021716,2]
[358697541,1745385032800,-500.0,0.00021716,2]
[358697542,1745385032810,-627.43746787,0.00021716,2]
[358697543,1745385032819,-500.0,0.00021716,2]
[358697544,1745385032830,-500.0,0.00021716,2]
[358697545,1745385032840,-500.0,0.00021716,2]
[358697546,1745385032850,-500.0,0.00021716,2]
[358697547,1745385032859,-500.0,0.00021716,2]
[358697548,1745385032869,-170.55733375,0.00021716,2]
[358697549,1745385032879,-500.0,0.00021716,2]
[358697550,1745385032888,-500.0,0.00021716,2]
[358697551,1745385032899,-409.39072145,0.00021716,2]
[358697552,1745385032908,-500.0,0.00021716,2]
[358697553,1745385032919,-500.0,0.00021716,2]
[358697554,1745385032930,-500.0,0.00021716,2]
[358697555,1745385032939,-500.0,0.00021716,2]
[358697556,1745385032949,-500.0,0.00021716,2]
[358697557,1745385032958,-500.0,0.00021716,2]
[358697558,1745385032968,-500.0,0.00021716,2]
[358697559,1745385032978,-500.0,0.00021716,2]
[358697560,1745385032987,-500.0,0.00021716,2]
[358697561,1745385032997,-500.0,0.00021716,2]
[358697562,1745385033138,-500.0,0.00021716,2]
[358697563,1745385033149,-500.0,0.00021716,2]
[358697564,1745385033160,-498.26473464,0.00021716,2]
[358697565,1745385033170,-212.1545246,0.00021716,2]
[358697566,1745385033180,-500.0,0.00021716,2]
[358697567,1745385033189,-500.0,0.00021716,2]
[358697568,1745385033199,-349.1563176,0.00021716,2]
[358697569,1745385033209,-397.755,0.00021716,2]
[358697570,1745385033219,-212477.28398702,0.00021717,2]
[358697571,1745385033232,-2025.24049253,0.00021717,2]
[358697572,1745385033244,-1722.64703909,0.00021717,2]
[358697624,1745385039239,-290.867,0.00020246,2]
[358697705,1745385040837,-49.76981366,0.00020246,2]
[358697707,1745385040847,-24651.57423138,0.00021717,2]
[358697710,1745385040860,-360.77973849,0.00021717,2]
[358697924,1745385043534,-5577.61827883,0.00021717,2]
[358697925,1745385043547,-3908.26106673,0.00021717,2]
[358697949,1745385046492,-10033.90908654,0.00021717,2]
[358698306,1745385051430,479.20589122,0.00019617,2]
[358698768,1745385091296,-166.5654824,0.00020246,2]
[358699237,1745385129110,-158.682982,0.00020146,2]
[358699916,1745385190422,-86.86470874,0.00020146,2]
[358699917,1745385190447,-225.71179589,0.00020156,2]
[358700462,1745385236273,-186.2683292,0.00020046,2]
[358701728,1745385352842,319.47059415,0.00019617,2]
[358701756,1745385354913,-113.7316708,0.00020046,2]
[358701757,1745385354937,-200.0,0.00020156,2]
[358701943,1745385654390,212.9803961,0.00019617,2]
[358701947,1745385826852,250.0,0.00019888,2]
[358701965,1745386099395,357.29935858,0.00019205,5]
[358701966,1745386132573,152.91141145,0.000168,2]
[358701974,1745386208693,280.73442,0.00019868,2]
[358702013,1745386232686,-574.28820411,0.00020156,2]
[358702014,1745386232700,-83.4345176,0.00020246,2]
[358702015,1745386232710,-300.0,0.0002059,2]
[358702016,1745386232720,-762.0,0.0002059,2]
[358702017,1745386232730,-167.0,0.0002059,2]
[358702018,1745386232741,-500.0,0.0002059,2]
[358702019,1745386232751,-483.67143823,0.0002059,2]
[358702020,1745386232760,-500.0,0.0002059,2]
[358702021,1745386232770,-500.0,0.0002059,2]
[358702022,1745386232785,-500.0,0.0002059,2]
[358702023,1745386232795,-500.0,0.0002059,2]
[358702024,1745386232806,-500.0,0.0002059,2]
[358702025,1745386232816,-66875.56954006,0.00020591,2]
[358702026,1745386232827,-1875.5397871,0.00020727,2]
[358702027,1745386232836,-257.00577054,0.00020732,2]
[358702028,1745386232847,-502.59319953,0.00020873,2]
[358702029,1745386232857,-500.0,0.00020873,2]
[358702030,1745386232867,-500.0,0.00020873,2]
[358702031,1745386232877,-500.0,0.00020873,2]
[358702032,1745386232887,-640.2136467,0.00020873,2]
[358702033,1745386232898,-477.23842255,0.00020873,2]
[358702034,1745386232910,-500.0,0.00020873,2]
[358702035,1745386232923,-500.0,0.00020873,2]
[358702036,1745386232936,-500.0,0.00020873,2]
[358702037,1745386232946,-300.0,0.00020873,2]
[358702038,1745386232956,-500.0,0.00020873,2]
[358702039,1745386232966,-242.70851076,0.00020873,2]
[358702040,1745386232976,-151.0,0.00020887,2]
[358702041,1745386232986,-207.4,0.00020887,2]
[358702042,1745386232995,-372.11751,0.00020899,4]
[358702043,1745386233005,-500.0,0.00020899,2]
[358702044,1745386233014,-444.40942232,0.00020899,2]
[358702045,1745386233024,-646.83453536,0.00020899,2]
[358702046,1745386233035,-50181.76637543,0.000209,2]
[358702068,1745386238929,-500.0,0.0002059,2]
[358702069,1745386238940,-147.8993521,0.0002059,2]
[358702076,1745386241324,-206.71256289,0.0002059,2]
[358702092,1745386257062,334.66268874,0.000189,2]
[358702093,1745386280230,-212.30381011,0.00020056,2]
[358702100,1745386302702,-37.69618989,0.00020056,2]
[358702101,1745386302732,-114.30381011,0.00020056,2]
[358702104,1745386344472,3008.86353433,0.000185,2]
[358702105,1745386345191,-172.67691472,0.00020056,2]
[358702109,1745386558222,223.10845916,0.000189,2]
[358702128,1745386885891,3495.484632,0.00019886,2]
[358702136,1745387208336,280.7344203,0.00019817,2]
[358702137,1745387209039,-280.7344203,0.00020056,2]
[358702138,1745387213775,-158.37060246,0.00020056,2]
[358702192,1745387432167,-273.91425241,0.00020056,2]
[358702193,1745387432178,-932.6262761,0.00020636,2]
[358702194,1745387432187,-297.94602205,0.00020697,2]
[358702195,1745387432199,-600.74348092,0.00020697,2]
[358702197,1745387432208,-300.0,0.00020796,2]
[358702199,1745387432218,-609.15888912,0.00020796,2]
[358702211,1745387438194,-142.84111088,0.00020796,2]
[358702212,1745387438204,-2578.2599904,0.00020797,2]
[358702213,1745387438213,-267.72057552,0.00020798,2]
[358702214,1745387438223,-500.0,0.00020798,2]
[358702215,1745387438233,-500.0,0.00020798,2]
[358702216,1745387438243,-500.0,0.00020798,2]
[358702217,1745387438252,-198.916142,0.00020798,2]
[358702218,1745387438262,-439.61055783,0.00020798,2]
[358702219,1745387438271,-500.0,0.00020798,2]
[358702220,1745387438281,-500.0,0.00020798,2]
[358702221,1745387438291,-500.0,0.00020798,2]
[358702222,1745387438301,-524.68044415,0.00020798,2]
[358702223,1745387438311,-500.0,0.00020798,2]
[358702224,1745387438321,-500.0,0.00020798,2]
[358702225,1745387438332,-500.0,0.00020798,2]
[358702226,1745387438342,-500.0,0.00020798,2]
[358702227,1745387438351,-500.0,0.00020798,2]
[358702228,1745387438362,-500.0,0.00020798,2]
[358702229,1745387438371,-500.0,0.00020798,2]
[358702230,1745387438381,-500.0,0.00020798,2]
[358702231,1745387438391,-500.0,0.00020798,2]
[358702232,1745387438400,-500.0,0.00020798,2]
[358702233,1745387438543,-500.0,0.00020798,2]
[358702234,1745387438554,-500.0,0.00020798,2]
[358702235,1745387438565,-500.0,0.00020798,2]
[358702236,1745387438575,-600.00000007,0.00020798,2]
[358702237,1745387438585,-500.0,0.00020798,2]
[358702238,1745387438595,-500.0,0.00020798,2]
[358702239,1745387438604,-500.0,0.00020798,2]
[358702240,1745387438613,-500.0,0.00020799,2]
[358702241,1745387438623,-293.15155892,0.00020799,2]
[358702242,1745387438633,-500.0,0.00020799,2]
[358702243,1745387438642,-161.08659562,0.00020799,2]
[358702244,1745387438652,-17976.0539294,0.000208,2]
[358702245,1745387438668,-1826.90825217,0.000208,2]
[358702246,1745387438680,-14506.38211901,0.000208,2]
[358702258,1745387442966,-6565.27675829,0.000208,2]
[358702280,1745387550021,1000.0,0.00019956,2]
[358702295,1745387977770,166.4509017,0.00019797,2]
[358702297,1745388002155,-188.30536858,0.00020695,2]
[358702336,1745388632504,-807.64034848,0.00020597,2]
[358702337,1745388632515,-671.45411298,0.00020597,2]
[358702338,1745388632524,-151.0,0.000206,2]
[358702339,1745388632534,-151.0,0.000206,3]
[358702340,1745388632543,-151.0,0.000206,4]
[358702341,1745388632553,-726.45112965,0.000206,7]
[358702342,1745388632563,-300.0,0.00020672,2]
[358702343,1745388632573,-300.0,0.00020672,2]
[358702344,1745388632582,-396.38565877,0.00020673,2]
[358702345,1745388632638,-103.61434123,0.00020673,2]
[358702346,1745388632648,-500.0,0.00020673,2]
[358702347,1745388632659,-612.97597904,0.00020673,2]
[358702348,1745388632669,-500.0,0.00020673,2]
[358702349,1745388632678,-500.0,0.00020673,2]
[358702350,1745388632688,-502.3738339,0.00020673,2]
[358702351,1745388632698,-500.0,0.00020673,2]
[358702352,1745388632708,-501.927914,0.00020673,2]
[358702353,1745388632718,-500.0,0.00020673,2]
[358702354,1745388632727,-500.0,0.00020673,2]
[358702355,1745388632736,-500.0,0.00020673,2]
[358702356,1745388632746,-300.0,0.00020673,2]
[358702357,1745388632756,-500.0,0.00020673,2]
[358702358,1745388632766,-500.0,0.00020673,2]
[358702359,1745388632776,-500.0,0.00020673,2]
[358702360,1745388632786,-500.0,0.00020673,2]
[358702361,1745388632795,-500.0,0.00020673,2]
[358702362,1745388632805,-500.0,0.00020673,2]
[358702363,1745388632815,-500.0,0.00020673,2]
[358702364,1745388632824,-500.0,0.00020673,2]
[358702365,1745388632834,-500.0,0.00020673,2]
[358702366,1745388632844,-6638.20299203,0.00020673,2]
[358702367,1745388632854,-671.45411296,0.00020673,2]
[358702368,1745388632864,-500.0,0.00020689,2]
[358702369,1745388632874,-500.0,0.00020689,2]
[358702370,1745388632884,-225.51303102,0.00020689,2]
[358702371,1745388632893,-169.40893824,0.00020689,2]
[358702372,1745388632903,-500.0,0.00020689,2]
[358702373,1745388632913,-233.89925099,0.00020689,2]
[358702374,1745388632923,-500.0,0.00020691,2]
[358702375,1745388632934,-500.0,0.00020691,2]
[358702376,1745388632944,-500.0,0.00020691,2]
[358702377,1745388632954,-422.20000075,0.00020691,2]
[358702378,1745388632964,-462.76061694,0.00020691,2]
[358702379,1745388632974,-500.0,0.00020691,2]
[358702380,1745388632984,-500.0,0.00020691,2]
[358702381,1745388632994,-457.08910883,0.00020691,2]
[358702382,1745388633004,-500.0,0.00020691,2]
[358702383,1745388633013,-174.97622937,0.00020691,2]
[358702384,1745388633023,-151.0,0.00020692,2]
[358702385,1745388633033,-151.0,0.00020692,2]
[358702386,1745388633042,-16861.24372036,0.00020692,2]
[358702387,1745388633181,-1458.74749187,0.00020692,2]
[358702403,1745388638161,-500.0,0.00020689,2]
[358702405,1745388638171,-236.1780162,0.00020689,2]
[358702407,1745388638184,-263.8219838,0.00020689,2]
[358702408,1745388638194,-500.0,0.00020689,2]
[358702409,1745388638203,-486.1780162,0.00020689,2]
[358702410,1745388638262,-80.26552739,0.00020689,2]
[358702411,1745388638272,-500.0,0.00020689,2]
[358702412,1745388638282,-500.0,0.00020689,2]
[358702413,1745388638294,-500.0,0.00020689,2]
[358702414,1745388638304,-500.0,0.00020689,2]
[358702415,1745388638316,-500.0,0.00020689,2]
[358702416,1745388638326,-500.0,0.00020689,2]
[358702417,1745388638336,-500.0,0.00020689,2]